[Event "Live Chess"]
[Site "Chess.com"]
[Date "2023.05.21"]
[Round "-"]
[White "HadesLearmonth"]
[Black "stevochess11"]
[Result "0-1"]
[WhiteElo "1201"]
[BlackElo "1698"]
[TimeControl "300"]
[EndTime "6:44:08 PDT"]
[Termination "stevochess11 won by resignation"]

1. e4 {[%clk 0:04:58.5]} 1... c5 {[%clk 0:04:59.4]} 2. Nf3 {[%clk 0:04:57.5]}
2... g6 {[%clk 0:04:58.5]} 3. d4 {[%clk 0:04:56.7]} 3... cxd4 {[%clk 0:04:56.7]}
4. Nxd4 {[%clk 0:04:56.6]} 4... Nc6 {[%clk 0:04:55.5]} 5. Nf3 {[%clk 0:04:53.9]}
5... Bg7 {[%clk 0:04:54]} 6. Nc3 {[%clk 0:04:52.3]} 6... Nf6 {[%clk 0:04:52.8]}
7. Bd2 {[%clk 0:04:48.5]} 7... O-O {[%clk 0:04:50.5]} 8. Bb5 {[%clk 0:04:45]}
8... d6 {[%clk 0:04:48.2]} 9. O-O {[%clk 0:04:43.8]} 9... Bg4 {[%clk 0:04:45.5]}
10. Qe2 {[%clk 0:04:40]} 10... Ne5 {[%clk 0:04:43.7]} 11. Nd5 {[%clk 0:04:34.4]}
11... Bxf3 {[%clk 0:04:30]} 12. gxf3 {[%clk 0:04:10.4]} 12... e6 {[%clk
0:04:25.4]} 13. Nxf6+ {[%clk 0:04:04.3]} 13... Qxf6 {[%clk 0:04:22.5]} 14. Kh1
{[%clk 0:04:01.3]} 14... Qxf3+ {[%clk 0:04:20.3]} 15. Qxf3 {[%clk 0:03:46.9]}
15... Nxf3 {[%clk 0:04:20.2]} 16. Be3 {[%clk 0:03:43.3]} 16... Bxb2 {[%clk
0:04:16.6]} 17. Rab1 {[%clk 0:03:40.7]} 17... Bd4 {[%clk 0:04:13.9]} 18. Bxd4
{[%clk 0:03:33.2]} 18... Nxd4 {[%clk 0:04:12.3]} 19. Bd3 {[%clk 0:03:31.1]}
19... Rac8 {[%clk 0:04:08.2]} 20. Rxb7 {[%clk 0:03:27.7]} 20... Nxc2 {[%clk
0:04:04.7]} 21. Rxa7 {[%clk 0:03:23.2]} 21... Nb4 {[%clk 0:03:58.3]} 22. Be2
{[%clk 0:03:17.2]} 22... Ra8 {[%clk 0:03:53.2]} 23. Rd7 {[%clk 0:03:03.6]} 23...
Rxa2 {[%clk 0:03:49.5]} 24. Bb5 {[%clk 0:02:58.6]} 24... Nc2 {[%clk 0:03:41.2]}
25. Rxd6 {[%clk 0:02:46.4]} 25... Rb2 {[%clk 0:03:38.2]} 26. Bd3 {[%clk
0:02:25.9]} 26... Nb4 {[%clk 0:03:29.6]} 27. Be2 {[%clk 0:02:18.6]} 27... Rxe2
{[%clk 0:03:15.9]} 28. f4 {[%clk 0:02:16.7]} 28... Rxe4 {[%clk 0:03:13.3]} 29.
Rd2 {[%clk 0:02:12.4]} 29... Nd5 {[%clk 0:03:09.5]} 30. Rdf2 {[%clk 0:02:10.1]}
30... Rb8 {[%clk 0:03:01.4]} 31. h3 {[%clk 0:02:06.7]} 31... Rbb4 {[%clk
0:02:58.9]} 0-1

[Event "Live Chess"]
[Site "Chess.com"]
[Date "2023.05.21"]
[Round "-"]
[White "ClassyChameleon"]
[Black "whatnot126"]
[Result "0-1"]
[WhiteElo "1083"]
[BlackElo "2066"]
[TimeControl "300"]
[EndTime "6:44:09 PDT"]
[Termination "whatnot126 won by checkmate"]

1. e4 {[%clk 0:04:55.8]} 1... d6 {[%clk 0:04:59.2]} 2. d4 {[%clk 0:04:52.8]}
2... Nf6 {[%clk 0:04:58.7]} 3. Nc3 {[%clk 0:04:50.5]} 3... g6 {[%clk 0:04:58.2]}
4. e5 {[%clk 0:04:47.9]} 4... dxe5 {[%clk 0:04:57]} 5. dxe5 {[%clk 0:04:47.4]}
5... Qxd1+ {[%clk 0:04:56.1]} 6. Nxd1 {[%clk 0:04:46]} 6... Ng4 {[%clk 0:04:56]}
7. Nf3 {[%clk 0:04:44.2]} 7... Bg7 {[%clk 0:04:55.5]} 8. Bg5 {[%clk 0:04:42.4]}
8... Nxe5 {[%clk 0:04:53]} 9. Nxe5 {[%clk 0:04:41.6]} 9... Bxe5 {[%clk
0:04:52.7]} 10. Bc4 {[%clk 0:04:36.7]} 10... e6 {[%clk 0:04:37.9]} 11. Ne3
{[%clk 0:04:34.7]} 11... Bxb2 {[%clk 0:04:35.2]} 12. Rd1 {[%clk 0:04:31.3]}
12... Bc3+ {[%clk 0:04:33.2]} 13. Ke2 {[%clk 0:04:28.1]} 13... O-O {[%clk
0:04:32]} 14. Ng4 {[%clk 0:04:18.9]} 14... Nd7 {[%clk 0:03:42]} 15. Rd3 {[%clk
0:04:12.6]} 15... Bg7 {[%clk 0:03:40.7]} 16. Rhd1 {[%clk 0:04:08.3]} 16... a6
{[%clk 0:03:39.4]} 17. Rf3 {[%clk 0:04:04.2]} 17... b5 {[%clk 0:03:33.4]} 18.
Bb3 {[%clk 0:04:01.3]} 18... Bb7 {[%clk 0:03:32.4]} 19. Rf4 {[%clk 0:03:41.7]}
19... Nc5 {[%clk 0:03:18.8]} 20. Rf6 {[%clk 0:03:33.3]} 20... Bxf6 {[%clk
0:03:02.8]} 21. Bxf6 {[%clk 0:03:32.2]} 21... h5 {[%clk 0:02:58.8]} 22. Ne5
{[%clk 0:03:21.8]} 22... Nxb3 {[%clk 0:02:54.8]} 23. axb3 {[%clk 0:03:20.2]}
23... Kh7 {[%clk 0:02:50]} 24. g4 {[%clk 0:03:17.8]} 24... hxg4 {[%clk 0:02:42]}
25. Nxg4 {[%clk 0:03:16]} 25... g5 {[%clk 0:02:35.1]} 26. Bxg5 {[%clk
0:02:47.5]} 26... f5 {[%clk 0:02:31.7]} 27. Ne5 {[%clk 0:02:40.3]} 27... Be4
{[%clk 0:02:17]} 28. Rd7+ {[%clk 0:02:36.3]} 28... Kg8 {[%clk 0:02:11.4]} 29.
Ng6 {[%clk 0:02:14.4]} 29... Rf7 {[%clk 0:02:07.3]} 30. Ne7+ {[%clk 0:02:12.4]}
30... Kf8 {[%clk 0:01:58.7]} 31. Bh6+ {[%clk 0:02:05.9]} 31... Ke8 {[%clk
0:01:57]} 32. Rxc7 {[%clk 0:01:46.9]} 32... Rxe7 {[%clk 0:01:55.5]} 33. Rxe7+
{[%clk 0:01:37]} 33... Kxe7 {[%clk 0:01:55.4]} 34. Ke3 {[%clk 0:01:34.9]} 34...
Bxc2 {[%clk 0:01:53.9]} 35. Kf4 {[%clk 0:01:33]} 35... Rh8 {[%clk 0:01:52.3]}
36. Bg5+ {[%clk 0:01:31.7]} 36... Kf7 {[%clk 0:01:51.4]} 37. Ke5 {[%clk
0:01:31]} 37... Rxh2 {[%clk 0:01:48.9]} 38. Bf6 {[%clk 0:01:30.1]} 38... Rxf2
{[%clk 0:01:47.2]} 39. b4 {[%clk 0:01:28.7]} 39... Re2+ {[%clk 0:01:46.5]} 40.
Kd6 {[%clk 0:01:27.2]} 40... Kxf6 {[%clk 0:01:45.9]} 41. Kc7 {[%clk 0:01:26.6]}
41... e5 {[%clk 0:01:44.1]} 42. Kb6 {[%clk 0:01:26.2]} 42... Rd2 {[%clk
0:01:42.4]} 43. Ka5 {[%clk 0:01:25.5]} 43... e4 {[%clk 0:01:40.3]} 44. Kxa6
{[%clk 0:01:24.8]} 44... e3 {[%clk 0:01:39.9]} 45. Kxb5 {[%clk 0:01:24.2]} 45...
e2 {[%clk 0:01:39.8]} 46. Kb6 {[%clk 0:01:22.8]} 46... e1=Q {[%clk 0:01:39.5]}
47. b5 {[%clk 0:01:22.7]} 47... Qe6+ {[%clk 0:01:36.6]} 48. Kb7 {[%clk
0:01:21.8]} 48... Be4+ {[%clk 0:01:34.8]} 49. Ka7 {[%clk 0:01:20.4]} 49... Rd7+
{[%clk 0:01:34.3]} 50. Kb8 {[%clk 0:01:19.4]} 50... Qe8# {[%clk 0:01:34.2]} 0-1

[Event "Live Chess"]
[Site "Chess.com"]
[Date "2023.05.21"]
[Round "-"]
[White "SupremeTactician"]
[Black "Tushinskiy"]
[Result "0-1"]
[WhiteElo "2213"]
[BlackElo "2215"]
[TimeControl "300"]
[EndTime "6:44:11 PDT"]
[Termination "Tushinskiy won by resignation"]

1. e4 {[%clk 0:04:57.7]} 1... e5 {[%clk 0:04:58.8]} 2. Nf3 {[%clk 0:04:56.2]}
2... d6 {[%clk 0:04:58.7]} 3. d4 {[%clk 0:04:53.9]} 3... Bg4 {[%clk 0:04:57.1]}
4. dxe5 {[%clk 0:04:52.2]} 4... Nd7 {[%clk 0:04:55.3]} 5. exd6 {[%clk
0:04:50.6]} 5... Bxd6 {[%clk 0:04:55.2]} 6. Be2 {[%clk 0:04:49.8]} 6... Qe7
{[%clk 0:04:51.8]} 7. O-O {[%clk 0:04:47.7]} 7... Ngf6 {[%clk 0:04:50.5]} 8. Nc3
{[%clk 0:04:45.3]} 8... O-O-O {[%clk 0:04:49.6]} 9. Be3 {[%clk 0:04:43]} 9... h5
{[%clk 0:04:46.1]} 10. h3 {[%clk 0:04:38.3]} 10... Ne5 {[%clk 0:04:44.3]} 11.
Nd4 {[%clk 0:04:33.8]} 11... Bc5 {[%clk 0:04:40.7]} 12. Na4 {[%clk 0:04:30.2]}
12... Bxe2 {[%clk 0:04:35.2]} 13. Qxe2 {[%clk 0:04:25.5]} 13... Bxd4 {[%clk
0:04:33.5]} 14. Bxd4 {[%clk 0:04:23.9]} 14... Rxd4 {[%clk 0:04:33.4]} 15. Nc3
{[%clk 0:04:21.7]} 15... g5 {[%clk 0:04:30]} 16. f4 {[%clk 0:04:15.9]} 16...
gxf4 {[%clk 0:04:28.6]} 17. Rxf4 {[%clk 0:04:15.8]} 17... c6 {[%clk 0:04:19.2]}
18. Raf1 {[%clk 0:04:13.1]} 18... Nfd7 {[%clk 0:04:17.2]} 19. Qe3 {[%clk
0:04:10.3]} 19... Rd6 {[%clk 0:04:12.1]} 20. Qxa7 {[%clk 0:04:07.3]} 20... Kc7
{[%clk 0:04:11.3]} 21. Qa5+ {[%clk 0:04:02]} 21... Kb8 {[%clk 0:04:08.9]} 22.
Nd1 {[%clk 0:03:48.3]} 22... Rg8 {[%clk 0:04:05.5]} 23. Ne3 {[%clk 0:03:47]}
23... Rdg6 {[%clk 0:03:59.3]} 24. R1f2 {[%clk 0:03:44]} 24... Qc5 {[%clk
0:03:55.5]} 25. Qd2 {[%clk 0:03:39.9]} 25... Rg3 {[%clk 0:03:51.7]} 26. Nf5
{[%clk 0:03:34.7]} 26... Rxg2+ {[%clk 0:03:49.3]} 27. Kh1 {[%clk 0:03:28.7]}
27... Rxf2 {[%clk 0:03:41.6]} 28. Rxf2 {[%clk 0:03:25.1]} 28... Ka8 {[%clk
0:03:33.1]} 29. b4 {[%clk 0:03:16.4]} 29... Qc4 {[%clk 0:03:26.9]} 30. Qe3
{[%clk 0:03:10.8]} 30... Qxa2 {[%clk 0:03:18.7]} 31. Rf1 {[%clk 0:03:05.7]}
31... Kb8 {[%clk 0:03:05.8]} 32. Ne7 {[%clk 0:03:01]} 32... Qxc2 {[%clk
0:03:03]} 33. Nxg8 {[%clk 0:02:58]} 33... f5 {[%clk 0:02:53.8]} 34. exf5 {[%clk
0:02:54.8]} 34... Qc4 {[%clk 0:02:52.8]} 35. Nh6 {[%clk 0:02:47.9]} 35... Qxf1+
{[%clk 0:02:49.6]} 36. Kh2 {[%clk 0:02:45.8]} 36... Nf3+ {[%clk 0:02:39.2]} 37.
Kg3 {[%clk 0:02:43.3]} 37... h4+ {[%clk 0:02:38.1]} 38. Kf4 {[%clk 0:02:40.5]}
38... Ng1+ {[%clk 0:02:29.6]} 39. Kg5 {[%clk 0:02:38.6]} 39... Nxh3+ {[%clk
0:02:27.7]} 40. Kg6 {[%clk 0:02:35.4]} 40... Nf4+ {[%clk 0:02:26.6]} 41. Kf7
{[%clk 0:02:33.8]} 41... Nd5 {[%clk 0:02:20.4]} 42. Qe8+ {[%clk 0:02:31.7]}
42... Kc7 {[%clk 0:02:19.3]} 43. Qe6 {[%clk 0:02:29]} 43... h3 {[%clk 0:02:17]}
44. Ke8 {[%clk 0:02:27.2]} 44... N5f6+ {[%clk 0:02:13.4]} 45. Ke7 {[%clk
0:02:25.8]} 45... h2 {[%clk 0:02:08.9]} 46. Qd6+ {[%clk 0:02:23.5]} 46... Kb6
{[%clk 0:02:06.8]} 47. Qxh2 {[%clk 0:02:21.8]} 47... Qe1+ {[%clk 0:02:02.7]} 48.
Kf7 {[%clk 0:02:20.7]} 48... Qxb4 {[%clk 0:02:00.1]} 49. Qf2+ {[%clk 0:02:17.1]}
49... Qc5 {[%clk 0:01:59.1]} 50. Qb2+ {[%clk 0:02:15.8]} 50... Kc7 {[%clk
0:01:57.1]} 51. Qe2 {[%clk 0:02:14.5]} 51... Qf8+ {[%clk 0:01:54.7]} 52. Kg6
{[%clk 0:02:11.7]} 52... b5 {[%clk 0:01:54]} 53. Qh2+ {[%clk 0:02:09.4]} 53...
Qd6 {[%clk 0:01:52.5]} 54. Qe2 {[%clk 0:02:04.5]} 54... Ng4+ {[%clk 0:01:50.8]}
55. Qe6 {[%clk 0:02:00.3]} 55... Nxh6 {[%clk 0:01:50.7]} 56. Kxh6 {[%clk
0:01:58.2]} 56... Qxe6+ {[%clk 0:01:49.3]} 57. fxe6 {[%clk 0:01:58.1]} 57... Nc5
{[%clk 0:01:47.7]} 58. e7 {[%clk 0:01:56.1]} 58... Kd7 {[%clk 0:01:46.8]} 0-1

[Event "Live Chess"]
[Site "Chess.com"]
[Date "2023.05.21"]
[Round "-"]
[White "JackCheetham1"]
[Black "ossie57"]
[Result "1/2-1/2"]
[WhiteElo "1715"]
[BlackElo "1837"]
[TimeControl "300"]
[EndTime "6:44:25 PDT"]
[Termination "Game drawn by agreement"]

1. e4 {[%clk 0:04:55.5]} 1... e5 {[%clk 0:04:57.3]} 2. Nf3 {[%clk 0:04:54]} 2...
Nc6 {[%clk 0:04:56.4]} 3. Bb5 {[%clk 0:04:53.1]} 3... Nf6 {[%clk 0:04:50.8]} 4.
d3 {[%clk 0:04:51.8]} 4... a6 {[%clk 0:04:50.1]} 5. Ba4 {[%clk 0:04:50.8]} 5...
b5 {[%clk 0:04:49.5]} 6. Bb3 {[%clk 0:04:49.9]} 6... d6 {[%clk 0:04:47]} 7. c3
{[%clk 0:04:48.8]} 7... Be7 {[%clk 0:04:45.8]} 8. h3 {[%clk 0:04:47.7]} 8... O-O
{[%clk 0:04:42.9]} 9. O-O {[%clk 0:04:46.9]} 9... Na5 {[%clk 0:04:42.4]} 10. Bc2
{[%clk 0:04:45.9]} 10... c5 {[%clk 0:04:42]} 11. Re1 {[%clk 0:04:45]} 11... Nc6
{[%clk 0:04:41.3]} 12. Nbd2 {[%clk 0:04:44.3]} 12... Nh5 {[%clk 0:04:40.2]} 13.
Nxe5 {[%clk 0:04:36.4]} 13... Nxe5 {[%clk 0:04:37.7]} 14. Qxh5 {[%clk
0:04:34.9]} 14... g6 {[%clk 0:04:35.2]} 15. Qe2 {[%clk 0:04:33]} 15... Bh4
{[%clk 0:04:30.2]} 16. Nf3 {[%clk 0:04:03.9]} 16... Nxf3+ {[%clk 0:04:19]} 17.
Qxf3 {[%clk 0:04:02.6]} 17... Bb7 {[%clk 0:04:12.8]} 18. Bh6 {[%clk 0:03:56]}
18... Re8 {[%clk 0:04:08.7]} 19. Bb3 {[%clk 0:03:51.7]} 19... Qf6 {[%clk
0:04:02.8]} 20. Qxf6 {[%clk 0:03:43.3]} 20... Bxf6 {[%clk 0:04:02.7]} 21. Bf4
{[%clk 0:03:32.1]} 21... Be5 {[%clk 0:03:59.1]} 22. Bxe5 {[%clk 0:03:27.4]}
22... dxe5 {[%clk 0:03:59]} 23. Rad1 {[%clk 0:03:14.8]} 23... Red8 {[%clk
0:03:57.4]} 24. Re3 {[%clk 0:03:09.1]} 24... Kg7 {[%clk 0:03:56.4]} 25. Rf3
{[%clk 0:03:01.9]} 25... f6 {[%clk 0:03:54.5]} 26. Rg3 {[%clk 0:02:49]} 26... c4
{[%clk 0:03:53.3]} 27. Bc2 {[%clk 0:02:47.1]} 27... cxd3 {[%clk 0:03:48]} 28.
Rgxd3 {[%clk 0:02:26.1]} 28... Rxd3 {[%clk 0:03:38]} 29. Bxd3 {[%clk 0:02:22.2]}
29... Rd8 {[%clk 0:03:32.6]} 30. f3 {[%clk 0:02:20.8]} 30... f5 {[%clk
0:03:27.2]} 31. exf5 {[%clk 0:02:08.6]} 31... gxf5 {[%clk 0:03:25.5]} 32. Bc2
{[%clk 0:01:58.8]} 32... Rxd1+ {[%clk 0:03:18.6]} 33. Bxd1 {[%clk 0:01:58.7]}
33... Kf6 {[%clk 0:03:18]} 34. Kf2 {[%clk 0:01:56.7]} 34... Bd5 {[%clk 0:03:17]}
35. Bb3 {[%clk 0:01:52]} 35... Bc6 {[%clk 0:03:13]} 36. Bg8 {[%clk 0:01:50]}
36... h6 {[%clk 0:03:11.9]} 37. Ke3 {[%clk 0:01:41]} 37... Kg7 {[%clk
0:03:10.7]} 38. Be6 {[%clk 0:01:39.6]} 38... Kf6 {[%clk 0:03:10.2]} 39. Bc8
{[%clk 0:01:37.2]} 39... a5 {[%clk 0:03:09.6]} 40. b3 {[%clk 0:01:28.4]} 40...
f4+ {[%clk 0:02:54.2]} 41. Kf2 {[%clk 0:01:15.5]} 41... Kg5 {[%clk 0:02:43.2]}
42. Be6 {[%clk 0:01:06.5]} 42... h5 {[%clk 0:02:40]} 43. c4 {[%clk 0:00:55.6]}
1/2-1/2

[Event "Live Chess"]
[Site "Chess.com"]
[Date "2023.05.21"]
[Round "-"]
[White "Ian-Morley"]
[Black "worldchessleaguelive"]
[Result "1-0"]
[WhiteElo "1087"]
[BlackElo "1353"]
[TimeControl "300"]
[EndTime "6:44:35 PDT"]
[Termination "Ian-Morley won by resignation"]

1. d4 {[%clk 0:04:57.9]} 1... d5 {[%clk 0:04:58.5]} 2. Nf3 {[%clk 0:04:57]} 2...
Nc6 {[%clk 0:04:55.9]} 3. Bf4 {[%clk 0:04:56.5]} 3... Nf6 {[%clk 0:04:54]} 4. e3
{[%clk 0:04:55.9]} 4... e6 {[%clk 0:04:52.3]} 5. c3 {[%clk 0:04:53.4]} 5... Bd6
{[%clk 0:04:51.5]} 6. Bg3 {[%clk 0:04:52.3]} 6... Bxg3 {[%clk 0:04:50.4]} 7.
hxg3 {[%clk 0:04:51.5]} 7... Ne4 {[%clk 0:04:49.6]} 8. Nbd2 {[%clk 0:04:49.6]}
8... Nxd2 {[%clk 0:04:48.5]} 9. Qxd2 {[%clk 0:04:48.9]} 9... Bd7 {[%clk
0:04:47.7]} 10. Qd3 {[%clk 0:04:48.3]} 10... Qe7 {[%clk 0:04:46.4]} 11. Rxh7
{[%clk 0:04:46.8]} 11... O-O-O {[%clk 0:04:43.5]} 12. Rxh8 {[%clk 0:04:40.1]}
12... Rxh8 {[%clk 0:04:41.9]} 13. O-O-O {[%clk 0:04:39.8]} 13... Rh1 {[%clk
0:04:40.6]} 14. Be2 {[%clk 0:04:38.3]} 14... Rxd1+ {[%clk 0:04:38.8]} 15. Bxd1
{[%clk 0:04:37.5]} 15... e5 {[%clk 0:04:33.5]} 16. Nxe5 {[%clk 0:04:34.5]} 16...
Nxe5 {[%clk 0:04:32.3]} 17. dxe5 {[%clk 0:04:33.7]} 17... Qxe5 {[%clk
0:04:31.6]} 18. f4 {[%clk 0:04:21.1]} 18... Qe6 {[%clk 0:04:23.8]} 19. Bc2
{[%clk 0:04:15]} 19... Bc6 {[%clk 0:04:21.8]} 20. Qf5 {[%clk 0:04:13.8]} 20...
Kd7 {[%clk 0:04:16.1]} 21. Qxe6+ {[%clk 0:04:12.3]} 21... Kxe6 {[%clk
0:04:08.5]} 22. f5+ {[%clk 0:04:11.2]} 22... Ke5 {[%clk 0:04:07]} 23. g4 {[%clk
0:04:10.6]} 23... Kf6 {[%clk 0:04:02]} 24. Kd2 {[%clk 0:04:08.4]} 24... Kg5
{[%clk 0:04:01.1]} 25. Bd1 {[%clk 0:04:06.1]} 25... Kh4 {[%clk 0:03:53.5]} 26.
Bf3 {[%clk 0:04:03.5]} 26... Kg3 {[%clk 0:03:49.9]} 27. Kd3 {[%clk 0:04:01.7]}
27... d4 {[%clk 0:03:42.9]} 28. Bxc6 {[%clk 0:03:59.4]} 28... bxc6 {[%clk
0:03:38.9]} 29. g5 {[%clk 0:03:58.6]} 29... dxc3 {[%clk 0:03:27.8]} 30. bxc3
{[%clk 0:03:57.4]} 30... Kxg2 {[%clk 0:03:26.8]} 31. e4 {[%clk 0:03:56.4]} 31...
Kf3 {[%clk 0:03:21.8]} 32. e5 {[%clk 0:03:55.5]} 32... Kf4 {[%clk 0:03:16.3]}
33. e6 {[%clk 0:03:53]} 33... fxe6 {[%clk 0:03:11.9]} 34. fxe6 {[%clk
0:03:51.8]} 34... Kxg5 {[%clk 0:03:10.5]} 35. e7 {[%clk 0:03:51.2]} 1-0

[Event "Live Chess"]
[Site "Chess.com"]
[Date "2023.05.21"]
[Round "-"]
[White "Cimon"]
[Black "LiamClery2020"]
[Result "1-0"]
[WhiteElo "1843"]
[BlackElo "1959"]
[TimeControl "300"]
[EndTime "6:44:35 PDT"]
[Termination "Cimon won by resignation"]

1. Nf3 {[%clk 0:04:57.8]} 1... Nf6 {[%clk 0:04:57]} 2. b3 {[%clk 0:04:56.4]}
2... Nc6 {[%clk 0:04:54.7]} 3. Bb2 {[%clk 0:04:55.3]} 3... d6 {[%clk 0:04:54.2]}
4. e3 {[%clk 0:04:54.1]} 4... e5 {[%clk 0:04:53.3]} 5. d4 {[%clk 0:04:52.5]}
5... e4 {[%clk 0:04:52.4]} 6. Nfd2 {[%clk 0:04:50.6]} 6... d5 {[%clk 0:04:51.4]}
7. Be2 {[%clk 0:04:47.5]} 7... Bd6 {[%clk 0:04:49.4]} 8. a3 {[%clk 0:04:46.4]}
8... h5 {[%clk 0:04:48.4]} 9. c4 {[%clk 0:04:44.8]} 9... Qe7 {[%clk 0:04:45]}
10. c5 {[%clk 0:04:43.3]} 10... Bxc5 {[%clk 0:04:42]} 11. dxc5 {[%clk
0:04:42.3]} 11... Qxc5 {[%clk 0:04:41.7]} 12. Nc3 {[%clk 0:04:37]} 12... Bg4
{[%clk 0:04:39.1]} 13. Rc1 {[%clk 0:04:33.7]} 13... Qe7 {[%clk 0:04:36.5]} 14.
h3 {[%clk 0:04:29.9]} 14... Bf5 {[%clk 0:04:34]} 15. Nb5 {[%clk 0:04:20.7]}
15... O-O-O {[%clk 0:04:31.1]} 16. b4 {[%clk 0:04:11.1]} 16... a6 {[%clk
0:04:29]} 17. Nd4 {[%clk 0:04:08.7]} 17... Nxd4 {[%clk 0:04:27.1]} 18. Bxd4
{[%clk 0:04:07.5]} 18... c6 {[%clk 0:04:25.6]} 19. Qb3 {[%clk 0:03:50.3]} 19...
Kb8 {[%clk 0:04:22.1]} 20. a4 {[%clk 0:03:47.8]} 20... Rhe8 {[%clk 0:04:12.4]}
21. b5 {[%clk 0:03:44.6]} 21... cxb5 {[%clk 0:04:09.5]} 22. axb5 {[%clk
0:03:42.3]} 22... Rc8 {[%clk 0:04:09.1]} 23. O-O {[%clk 0:03:36.9]} 23... g5
{[%clk 0:04:02]} 24. bxa6 {[%clk 0:03:33.6]} 1-0

[Event "Live Chess"]
[Site "Chess.com"]
[Date "2023.05.21"]
[Round "-"]
[White "jumush"]
[Black "AyannaTang"]
[Result "1-0"]
[WhiteElo "1714"]
[BlackElo "230"]
[TimeControl "300"]
[EndTime "6:44:59 PDT"]
[Termination "jumush won by checkmate"]

1. e4 {[%clk 0:04:57.2]} 1... e5 {[%clk 0:04:55.7]} 2. Nc3 {[%clk 0:04:52.6]}
2... Nc6 {[%clk 0:04:51.9]} 3. Bc4 {[%clk 0:04:50.3]} 3... d5 {[%clk 0:04:49.9]}
4. Nxd5 {[%clk 0:04:48.1]} 4... Nd4 {[%clk 0:04:47.2]} 5. c3 {[%clk 0:04:46.4]}
5... c6 {[%clk 0:04:38.9]} 6. cxd4 {[%clk 0:04:43]} 6... cxd5 {[%clk 0:04:36.1]}
7. Bxd5 {[%clk 0:04:41.6]} 7... exd4 {[%clk 0:04:32.7]} 8. d3 {[%clk 0:04:40.2]}
8... f5 {[%clk 0:04:27.7]} 9. Nf3 {[%clk 0:04:37]} 9... fxe4 {[%clk 0:04:26.1]}
10. dxe4 {[%clk 0:04:35]} 10... Bb4+ {[%clk 0:04:20.3]} 11. Bd2 {[%clk
0:04:32.4]} 11... Qa5 {[%clk 0:04:15.8]} 12. Bxb4 {[%clk 0:04:28.6]} 12... Qxb4+
{[%clk 0:04:14.1]} 13. Qd2 {[%clk 0:04:25]} 13... Qxd2+ {[%clk 0:04:11.7]} 14.
Kxd2 {[%clk 0:04:23]} 14... Bg4 {[%clk 0:04:02.5]} 15. Nxd4 {[%clk 0:04:20.9]}
15... O-O-O {[%clk 0:03:54.1]} 16. f3 {[%clk 0:04:16.6]} 16... Be6 {[%clk
0:03:48.8]} 17. Bxe6+ {[%clk 0:04:14.4]} 17... Kc7 {[%clk 0:03:43.8]} 18. Rac1+
{[%clk 0:04:12.2]} 18... Kb8 {[%clk 0:03:41.8]} 19. Ke3 {[%clk 0:04:09.8]} 19...
Nf6 {[%clk 0:03:33.4]} 20. Rc3 {[%clk 0:04:03.2]} 20... g5 {[%clk 0:03:21.6]}
21. h3 {[%clk 0:04:00.8]} 21... Rdg8 {[%clk 0:02:54.2]} 22. Rhc1 {[%clk
0:03:54.9]} 22... g4 {[%clk 0:02:51.6]} 23. Bxg8 {[%clk 0:03:53]} 23... Rxg8
{[%clk 0:02:48.7]} 24. hxg4 {[%clk 0:03:50.4]} 24... Nxg4+ {[%clk 0:02:44.5]}
25. fxg4 {[%clk 0:03:47.8]} 25... Rxg4 {[%clk 0:02:42.8]} 26. R1c2 {[%clk
0:03:46.3]} 26... Rg3+ {[%clk 0:02:41.2]} 27. Nf3 {[%clk 0:03:44.3]} 27... Rxg2
{[%clk 0:02:39.2]} 28. Rc8# {[%clk 0:03:39.5]} 1-0

[Event "Live Chess"]
[Site "Chess.com"]
[Date "2023.05.21"]
[Round "-"]
[White "Vedant-1411"]
[Black "WelshTiger"]
[Result "0-1"]
[WhiteElo "877"]
[BlackElo "2326"]
[TimeControl "300"]
[EndTime "6:44:59 PDT"]
[Termination "WelshTiger won by checkmate"]

1. d4 {[%clk 0:04:47.3]} 1... d5 {[%clk 0:04:58.6]} 2. Nf3 {[%clk 0:04:46.3]}
2... e6 {[%clk 0:04:57.7]} 3. Nc3 {[%clk 0:04:45.4]} 3... Nf6 {[%clk 0:04:55]}
4. Bf4 {[%clk 0:04:41.6]} 4... Bd6 {[%clk 0:04:53.5]} 5. Bg3 {[%clk 0:04:39.5]}
5... a6 {[%clk 0:04:51.4]} 6. Bxd6 {[%clk 0:04:33.8]} 6... cxd6 {[%clk
0:04:48.6]} 7. e3 {[%clk 0:04:33.5]} 7... b5 {[%clk 0:04:47.2]} 8. Bd3 {[%clk
0:04:33.1]} 8... Bb7 {[%clk 0:04:45.9]} 9. Ne2 {[%clk 0:04:32.7]} 9... Ne4
{[%clk 0:04:45]} 10. O-O {[%clk 0:04:31.3]} 10... Nd7 {[%clk 0:04:43.8]} 11.
Bxe4 {[%clk 0:04:29.5]} 11... dxe4 {[%clk 0:04:43]} 12. Nd2 {[%clk 0:04:28.7]}
12... f5 {[%clk 0:04:40.9]} 13. Nc3 {[%clk 0:04:27.6]} 13... Qf6 {[%clk
0:04:39.5]} 14. a3 {[%clk 0:04:24.7]} 14... Rc8 {[%clk 0:04:38]} 15. a4 {[%clk
0:04:22.3]} 15... b4 {[%clk 0:04:36.1]} 16. Ne2 {[%clk 0:04:19.1]} 16... a5
{[%clk 0:04:35.4]} 17. Nb1 {[%clk 0:04:12.1]} 17... Ba6 {[%clk 0:04:34.5]} 18.
Nd2 {[%clk 0:04:10.5]} 18... Qe7 {[%clk 0:04:33]} 19. Nb1 {[%clk 0:04:09.1]}
19... Nf6 {[%clk 0:04:31.8]} 20. Nd2 {[%clk 0:04:08.2]} 20... Nd5 {[%clk
0:04:31.1]} 21. Nb3 {[%clk 0:04:03.5]} 21... Qa7 {[%clk 0:04:25.8]} 22. Ng3
{[%clk 0:03:59.7]} 22... Bxf1 {[%clk 0:04:22.7]} 23. Qxf1 {[%clk 0:03:55]} 23...
O-O {[%clk 0:04:19.9]} 24. Qe2 {[%clk 0:03:45.8]} 24... Rc7 {[%clk 0:04:15.6]}
25. Qh5 {[%clk 0:03:43.2]} 25... Rxc2 {[%clk 0:04:08.5]} 26. Qd1 {[%clk
0:03:36]} 26... Rfc8 {[%clk 0:04:06.2]} 27. h3 {[%clk 0:03:33.8]} 27... Rxb2
{[%clk 0:04:01.2]} 28. Nd2 {[%clk 0:03:27.4]} 28... Rcc2 {[%clk 0:03:55.1]} 29.
Ndf1 {[%clk 0:03:23.7]} 29... Rxf2 {[%clk 0:03:53.2]} 30. Nh2 {[%clk 0:03:21]}
30... Rxg2+ {[%clk 0:03:51.7]} 31. Kh1 {[%clk 0:03:19.5]} 31... Rxh2+ {[%clk
0:03:51]} 32. Kg1 {[%clk 0:03:18.5]} 32... Rbg2+ {[%clk 0:03:49.5]} 33. Kf1
{[%clk 0:03:17.5]} 33... Nxe3+ {[%clk 0:03:48.9]} 34. Ke1 {[%clk 0:03:16]} 34...
Rxg3 {[%clk 0:03:36.2]} 35. Rc1 {[%clk 0:03:01.8]} 35... Rg1# {[%clk 0:03:34.5]}
0-1